[Event "Titled Tuesday Blitz July 25 Late 2023"]
[White "Alahakoon, Isuru"]
[Black "Winkels, Marcel"]
[WhiteFideId "9900993"]
[BlackFideId "1003887"]
[WhiteElo "2331"]
[BlackElo "2068"]
[Result "0-1"]
[Round "8"]
[TimeControl "180+2"]
[Date "2023.07.25"]
[WhiteClock "0:00:00"]
[BlackClock "0:00:03"]
[Board "137"]

1. d4 {[%clk 0:03:00]}  Nf6 {[%clk 0:02:58]} 2. Bg5 {[%clk 0:02:59]}  Ne4 {[%clk 0:02:56]} 3. Bf4 {[%clk 0:02:52]}  d5 {[%clk 0:02:52]} 4. f3 {[%clk 0:02:47]}  Nf6 {[%clk 0:02:50]} 5. Nc3 {[%clk 0:02:45]}  Bf5 {[%clk 0:02:43]} 6. g4 {[%clk 0:02:28]}  Bg6 {[%clk 0:02:42]} 7. h4 {[%clk 0:02:27]}  h6 {[%clk 0:02:37]} 8. e3 {[%clk 0:02:23]}  c6 {[%clk 0:02:36]} 9. Bd3 {[%clk 0:02:18]}  Bxd3 {[%clk 0:02:25]} 10. Qxd3 {[%clk 0:02:19]}  e6 {[%clk 0:02:24]} 11. O-O-O {[%clk 0:02:09]}  Nbd7 {[%clk 0:02:23]} 12. Nh3 {[%clk 0:02:07]}  b5 {[%clk 0:02:14]} 13. g5 {[%clk 0:02:03]}  Nh5 {[%clk 0:02:06]} 14. g6 {[%clk 0:01:51]}  f6 {[%clk 0:01:43]} 15. e4 {[%clk 0:01:50]}  Bb4 {[%clk 0:01:37]} 16. exd5 {[%clk 0:01:40]}  cxd5 {[%clk 0:01:29]} 17. Nxb5 {[%clk 0:01:37]}  O-O {[%clk 0:01:23]} 18. Bc7 {[%clk 0:01:06]}  Qc8 {[%clk 0:01:08]} 19. Qb3 {[%clk 0:00:32]}  a5 {[%clk 0:00:56]} 20. a4 {[%clk 0:00:29]}  Ra6 {[%clk 0:00:39]} 21. Kb1 {[%clk 0:00:26]}  Rc6 {[%clk 0:00:37]} 22. Bh2 {[%clk 0:00:18]}  Qb7 {[%clk 0:00:29]} 23. Nf4 {[%clk 0:00:16]}  Nxf4 {[%clk 0:00:26]} 24. Bxf4 {[%clk 0:00:17]}  Rfc8 {[%clk 0:00:20]} 25. c3 {[%clk 0:00:17]}  Be7 {[%clk 0:00:14]} 26. h5 {[%clk 0:00:12]}  Nb6 {[%clk 0:00:12]} 27. Bc1 {[%clk 0:00:10]}  Nc4 {[%clk 0:00:12]} 28. Rhe1 {[%clk 0:00:09]}  Qd7 {[%clk 0:00:09]} 29. f4 {[%clk 0:00:08]}  Nb6 {[%clk 0:00:08]} 30. Qc2 {[%clk 0:00:07]}  Rc4 {[%clk 0:00:07]} 31. b3 {[%clk 0:00:06]}  R4c6 {[%clk 0:00:07]} 32. Bb2 {[%clk 0:00:05]}  Rb8 {[%clk 0:00:06]} 33. Qd3 {[%clk 0:00:05]}  Nc8 {[%clk 0:00:05]} 34. Rf1 {[%clk 0:00:04]}  Nd6 {[%clk 0:00:05]} 35. Nxd6 {[%clk 0:00:03]}  Bxd6 {[%clk 0:00:04]} 36. Ka2 {[%clk 0:00:03]}  Rcb6 {[%clk 0:00:04]} 37. Qc2 {[%clk 0:00:03]}  Qb7 {[%clk 0:00:05]} 38. f5 {[%clk 0:00:02]}  Rxb3 {[%clk 0:00:05]} 39. Rb1 {[%clk 0:00:01]}  Ra3+ {[%clk 0:00:04]} 40. Bxa3 {[%clk 0:00:00]}  Qc8 {[%clk 0:00:03]} 0-1


[Site "https://www.chess.com"]

[Event "Titled Tuesday Blitz July 25 Late 2023"]
[White "UgarteCesar"]
[Black "Jahnz, Fabian"]
[BlackFideId "4653300"]
[WhiteElo "2285"]
[BlackElo "2136"]
[Result "0-1"]
[Round "8"]
[TimeControl "180+2"]
[Date "2023.07.25"]
[WhiteClock "0:00:18"]
[BlackClock "0:00:59"]
[Board "138"]

1. d4 {[%clk 0:03:00]}  d5 {[%clk 0:02:59]} 2. Bf4 {[%clk 0:03:01]}  Nf6 {[%clk 0:02:59]} 3. e3 {[%clk 0:03:01]}  Bf5 {[%clk 0:02:59]} 4. Bd3 {[%clk 0:03:00]}  Bxd3 {[%clk 0:02:59]} 5. Qxd3 {[%clk 0:03:01]}  e6 {[%clk 0:02:59]} 6. Nf3 {[%clk 0:03:02]}  c6 {[%clk 0:02:58]} 7. Nbd2 {[%clk 0:03:01]}  Bd6 {[%clk 0:02:58]} 8. Bg3 {[%clk 0:03:02]}  O-O {[%clk 0:02:57]} 9. O-O {[%clk 0:03:02]}  Bxg3 {[%clk 0:02:57]} 10. hxg3 {[%clk 0:03:03]}  Nbd7 {[%clk 0:02:57]} 11. e4 {[%clk 0:03:03]}  dxe4 {[%clk 0:02:57]} 12. Nxe4 {[%clk 0:03:04]}  Nxe4 {[%clk 0:02:58]} 13. Qxe4 {[%clk 0:03:05]}  Nf6 {[%clk 0:02:57]} 14. Qe2 {[%clk 0:03:05]}  Qc7 {[%clk 0:02:56]} 15. c3 {[%clk 0:03:04]}  Rad8 {[%clk 0:02:55]} 16. Rfe1 {[%clk 0:03:04]}  c5 {[%clk 0:02:54]} 17. Rad1 {[%clk 0:03:04]}  cxd4 {[%clk 0:02:53]} 18. Rxd4 {[%clk 0:03:05]}  Rxd4 {[%clk 0:02:53]} 19. Nxd4 {[%clk 0:03:05]}  a6 {[%clk 0:02:52]} 20. Qe5 {[%clk 0:03:04]}  Qxe5 {[%clk 0:02:51]} 21. Rxe5 {[%clk 0:03:04]}  Nd5 {[%clk 0:02:49]} 22. Kf1 {[%clk 0:03:00]}  Rc8 {[%clk 0:02:47]} 23. Ke2 {[%clk 0:02:58]}  b5 {[%clk 0:02:46]} 24. a3 {[%clk 0:02:58]}  Nb6 {[%clk 0:02:43]} 25. Kf3 {[%clk 0:02:51]}  Nc4 {[%clk 0:02:42]} 26. Re2 {[%clk 0:02:51]}  Rc5 {[%clk 0:02:39]} 27. g4 {[%clk 0:02:44]}  Kf8 {[%clk 0:02:36]} 28. Kg3 {[%clk 0:02:40]}  e5 {[%clk 0:02:30]} 29. Nf5 {[%clk 0:02:33]}  g6 {[%clk 0:02:29]} 30. Ne3 {[%clk 0:02:34]}  Nxe3 {[%clk 0:02:16]} 31. Rxe3 {[%clk 0:02:34]}  f5 {[%clk 0:02:15]} 32. gxf5 {[%clk 0:02:33]}  gxf5 {[%clk 0:02:16]} 33. Rd3 {[%clk 0:02:32]}  Ke7 {[%clk 0:02:15]} 34. f3 {[%clk 0:02:29]}  a5 {[%clk 0:02:13]} 35. Kh4 {[%clk 0:02:25]}  h6 {[%clk 0:01:57]} 36. Kh5 {[%clk 0:02:18]}  e4 {[%clk 0:01:57]} 37. Rd1 {[%clk 0:01:55]}  e3 {[%clk 0:01:49]} 38. f4 {[%clk 0:01:50]}  Rc4 {[%clk 0:01:44]} 39. g3 {[%clk 0:01:43]}  e2 {[%clk 0:01:44]} 40. Re1 {[%clk 0:01:39]}  Re4 {[%clk 0:01:44]} 41. Kg6 {[%clk 0:01:39]}  Ke6 {[%clk 0:01:43]} 42. Kxh6 {[%clk 0:01:37]}  Kf6 {[%clk 0:01:43]} 43. Kh5 {[%clk 0:01:35]}  a4 {[%clk 0:01:40]} 44. g4 {[%clk 0:01:32]}  Rxf4 {[%clk 0:01:17]} 45. g5+ {[%clk 0:01:19]}  Kg7 {[%clk 0:01:16]} 46. Rxe2 {[%clk 0:01:17]}  Kf7 {[%clk 0:01:11]} 47. Re5 {[%clk 0:01:12]}  Rf2 {[%clk 0:01:10]} 48. g6+ {[%clk 0:01:03]}  Kf6 {[%clk 0:01:02]} 49. Kh4 {[%clk 0:00:18]}  Kxe5 {[%clk 0:00:59]} 0-1


[Site "https://www.chess.com"]

[Event "Titled Tuesday Blitz July 25 Late 2023"]
[White "Quirke, Jeffrey"]
[Black "Broca Jimenez, Fernando"]
[WhiteFideId "2013029"]
[BlackFideId "5104742"]
[WhiteElo "2178"]
[BlackElo "2260"]
[Result "1-0"]
[Round "8"]
[TimeControl "180+2"]
[Date "2023.07.25"]
[WhiteClock "0:00:44"]
[BlackClock "0:00:21"]
[Board "142"]

1. c4 {[%clk 0:03:00]}  g6 {[%clk 0:02:59]} 2. Nc3 {[%clk 0:02:59]}  Bg7 {[%clk 0:02:59]} 3. g3 {[%clk 0:02:59]}  Nf6 {[%clk 0:03:00]} 4. Bg2 {[%clk 0:03:00]}  d6 {[%clk 0:03:01]} 5. Nf3 {[%clk 0:02:59]}  O-O {[%clk 0:03:02]} 6. O-O {[%clk 0:02:59]}  Nc6 {[%clk 0:02:59]} 7. d3 {[%clk 0:02:59]}  e5 {[%clk 0:03:00]} 8. b3 {[%clk 0:03:00]}  e4 {[%clk 0:02:55]} 9. dxe4 {[%clk 0:02:59]}  Nxe4 {[%clk 0:02:53]} 10. Nxe4 {[%clk 0:02:59]}  Bxa1 {[%clk 0:02:53]} 11. Bg5 {[%clk 0:02:57]}  f6 {[%clk 0:02:48]} 12. Qxa1 {[%clk 0:02:53]}  fxg5 {[%clk 0:02:46]} 13. Nexg5 {[%clk 0:02:49]}  Ne5 {[%clk 0:02:43]} 14. Nxe5 {[%clk 0:02:42]}  Qxg5 {[%clk 0:02:33]} 15. Bd5+ {[%clk 0:02:39]}  Kg7 {[%clk 0:02:09]} 16. Ng4+ {[%clk 0:02:09]}  Rf6 {[%clk 0:02:06]} 17. Nxf6 {[%clk 0:02:02]}  Qxf6 {[%clk 0:02:07]} 18. Qxf6+ {[%clk 0:02:02]}  Kxf6 {[%clk 0:02:08]} 19. f4 {[%clk 0:01:58]}  c6 {[%clk 0:02:04]} 20. Bf3 {[%clk 0:01:57]}  Be6 {[%clk 0:01:54]} 21. Rd1 {[%clk 0:01:56]}  Ke7 {[%clk 0:01:54]} 22. e3 {[%clk 0:01:52]}  Rf8 {[%clk 0:01:52]} 23. Kf2 {[%clk 0:01:52]}  a5 {[%clk 0:01:48]} 24. g4 {[%clk 0:01:46]}  a4 {[%clk 0:01:42]} 25. g5 {[%clk 0:01:45]}  axb3 {[%clk 0:01:39]} 26. axb3 {[%clk 0:01:46]}  Ra8 {[%clk 0:01:38]} 27. Rd2 {[%clk 0:01:41]}  Ra3 {[%clk 0:01:31]} 28. Rb2 {[%clk 0:01:41]}  Kd7 {[%clk 0:01:31]} 29. h4 {[%clk 0:01:39]}  b5 {[%clk 0:01:29]} 30. cxb5 {[%clk 0:01:35]}  cxb5 {[%clk 0:01:30]} 31. h5 {[%clk 0:01:32]}  Rxb3 {[%clk 0:01:25]} 32. Rxb3 {[%clk 0:01:15]}  Bxb3 {[%clk 0:01:26]} 33. h6 {[%clk 0:01:15]}  Be6 {[%clk 0:01:16]} 34. Be4 {[%clk 0:01:10]}  Bg8 {[%clk 0:00:52]} 35. f5 {[%clk 0:01:03]}  gxf5 {[%clk 0:00:43]} 36. Bxf5+ {[%clk 0:01:04]}  Ke7 {[%clk 0:00:43]} 37. g6 {[%clk 0:01:03]}  hxg6 {[%clk 0:00:43]} 38. Bxg6 {[%clk 0:01:03]}  Kf6 {[%clk 0:00:41]} 39. h7 {[%clk 0:00:59]}  Bxh7 {[%clk 0:00:41]} 40. Bxh7 {[%clk 0:01:00]}  Ke5 {[%clk 0:00:41]} 41. Ke2 {[%clk 0:00:54]}  Kd5 {[%clk 0:00:37]} 42. Kd3 {[%clk 0:00:52]}  Ke5 {[%clk 0:00:38]} 43. Bg8 {[%clk 0:00:48]}  Kf6 {[%clk 0:00:31]} 44. Bd5 {[%clk 0:00:45]}  Ke5 {[%clk 0:00:29]} 45. Bb3 {[%clk 0:00:45]}  d5 {[%clk 0:00:27]} 46. Ba2 {[%clk 0:00:44]}  b4 {[%clk 0:00:26]} 47. Bb3 {[%clk 0:00:44]}  Kd6 {[%clk 0:00:21]} 48. Kd4 {[%clk 0:00:44]} 1-0


[Site "https://www.chess.com"]

[Event "Titled Tuesday Blitz July 25 Late 2023"]
[White "dorpato"]
[Black "disciplinedbrat"]
[WhiteElo "2035"]
[BlackElo "2255"]
[Result "0-1"]
[Round "8"]
[TimeControl "180+2"]
[Date "2023.07.25"]
[WhiteClock "0:00:15"]
[BlackClock "0:01:42"]
[Board "143"]

1. e4 {[%clk 0:03:00]}  c6 {[%clk 0:02:56]} 2. d4 {[%clk 0:02:54]}  d5 {[%clk 0:02:55]} 3. e5 {[%clk 0:02:43]}  c5 {[%clk 0:02:52]} 4. c3 {[%clk 0:02:36]}  Nc6 {[%clk 0:02:46]} 5. Nf3 {[%clk 0:02:31]}  Bf5 {[%clk 0:02:43]} 6. Bd3 {[%clk 0:02:23]}  Bxd3 {[%clk 0:02:35]} 7. Qxd3 {[%clk 0:02:20]}  e6 {[%clk 0:02:36]} 8. O-O {[%clk 0:02:05]}  Nge7 {[%clk 0:02:31]} 9. Be3 {[%clk 0:01:55]}  cxd4 {[%clk 0:02:25]} 10. cxd4 {[%clk 0:01:53]}  Nf5 {[%clk 0:02:25]} 11. Nc3 {[%clk 0:01:48]}  Be7 {[%clk 0:02:24]} 12. a3 {[%clk 0:01:30]}  O-O {[%clk 0:02:12]} 13. Rac1 {[%clk 0:01:25]}  Rc8 {[%clk 0:02:02]} 14. b4 {[%clk 0:01:04]}  a6 {[%clk 0:02:01]} 15. Na4 {[%clk 0:00:54]}  f6 {[%clk 0:01:59]} 16. Nc5 {[%clk 0:00:43]}  Bxc5 {[%clk 0:01:58]} 17. Rxc5 {[%clk 0:00:30]}  fxe5 {[%clk 0:01:58]} 18. dxe5 {[%clk 0:00:19]}  Nh4 {[%clk 0:01:57]} 19. Nxh4 {[%clk 0:00:17]}  Qxh4 {[%clk 0:01:58]} 20. Rfc1 {[%clk 0:00:16]}  Nxe5 {[%clk 0:01:56]} 21. Qe2 {[%clk 0:00:15]}  Rxc5 {[%clk 0:01:52]} 22. Bxc5 {[%clk 0:00:15]}  Qf4 {[%clk 0:01:44]} 23. Bxf8 {[%clk 0:00:13]}  Qxc1+ {[%clk 0:01:43]} 24. Qf1 {[%clk 0:00:14]}  Qxf1+ {[%clk 0:01:42]} 25. Kxf1 {[%clk 0:00:15]} 0-1


[Site "https://www.chess.com"]

[Event "Titled Tuesday Blitz July 25 Late 2023"]
[White "Sainz Aguirre, Ignacio"]
[Black "Thiel, Thomas"]
[WhiteFideId "5101727"]
[BlackFideId "4615964"]
[WhiteElo "1969"]
[BlackElo "2249"]
[Result "1/2-1/2"]
[Round "8"]
[TimeControl "180+2"]
[Date "2023.07.25"]
[WhiteClock "0:01:00"]
[BlackClock "0:02:09"]
[Board "144"]

1. e4 {[%clk 0:03:00]}  d5 {[%clk 0:02:59]} 2. exd5 {[%clk 0:02:59]}  Nf6 {[%clk 0:02:59]} 3. d4 {[%clk 0:02:57]}  Nxd5 {[%clk 0:02:58]} 4. c4 {[%clk 0:02:56]}  Nb6 {[%clk 0:02:57]} 5. Nf3 {[%clk 0:02:42]}  g6 {[%clk 0:02:55]} 6. Nc3 {[%clk 0:02:37]}  Bg7 {[%clk 0:02:55]} 7. c5 {[%clk 0:02:34]}  Nd5 {[%clk 0:02:54]} 8. Bc4 {[%clk 0:02:29]}  Nxc3 {[%clk 0:02:54]} 9. bxc3 {[%clk 0:02:28]}  O-O {[%clk 0:02:54]} 10. h3 {[%clk 0:02:22]}  Nc6 {[%clk 0:02:53]} 11. Bf4 {[%clk 0:02:14]}  Na5 {[%clk 0:02:52]} 12. Be2 {[%clk 0:02:04]}  b6 {[%clk 0:02:51]} 13. O-O {[%clk 0:01:43]}  bxc5 {[%clk 0:02:47]} 14. Qa4 {[%clk 0:01:40]}  Nb7 {[%clk 0:02:40]} 15. Ne5 {[%clk 0:01:32]}  Qe8 {[%clk 0:02:28]} 16. Bb5 {[%clk 0:01:23]}  Qd8 {[%clk 0:02:16]} 17. Nc6 {[%clk 0:01:23]}  Qe8 {[%clk 0:02:12]} 18. Ne5 {[%clk 0:01:01]}  Qd8 {[%clk 0:02:10]} 19. Nc6 {[%clk 0:01:00]}  Qe8 {[%clk 0:02:09]} 20. Ne5 {[%clk 0:01:00]} 1/2-1/2


[Site "https://www.chess.com"]

[Event "Titled Tuesday Blitz July 25 Late 2023"]
[White "De Souza, Cristiano Gomes"]
[Black "Vargas, Mauricio"]
[WhiteFideId "2151758"]
[BlackFideId "4404572"]
[WhiteElo "2204"]
[BlackElo "1880"]
[Result "1-0"]
[Round "8"]
[TimeControl "180+2"]
[Date "2023.07.25"]
[WhiteClock "0:01:56"]
[BlackClock "0:00:00"]
[Board "146"]

1. d4 {[%clk 0:02:59]}  d5 {[%clk 0:02:31]} 2. c4 {[%clk 0:02:58]}  c6 {[%clk 0:02:29]} 3. Nf3 {[%clk 0:02:58]}  e6 {[%clk 0:02:28]} 4. Nc3 {[%clk 0:02:56]}  dxc4 {[%clk 0:02:27]} 5. a4 {[%clk 0:02:56]}  Bb4 {[%clk 0:02:26]} 6. e3 {[%clk 0:02:54]}  b5 {[%clk 0:02:25]} 7. Bd2 {[%clk 0:02:53]}  a6 {[%clk 0:02:16]} 8. axb5 {[%clk 0:02:53]}  Bxc3 {[%clk 0:02:14]} 9. Bxc3 {[%clk 0:02:54]}  cxb5 {[%clk 0:02:14]} 10. b3 {[%clk 0:02:43]}  Qe7 {[%clk 0:01:29]} 11. bxc4 {[%clk 0:02:39]}  b4 {[%clk 0:01:28]} 12. Bb2 {[%clk 0:02:39]}  a5 {[%clk 0:01:25]} 13. c5 {[%clk 0:02:39]}  Bb7 {[%clk 0:01:23]} 14. Bb5+ {[%clk 0:02:37]}  Nd7 {[%clk 0:01:20]} 15. Ne5 {[%clk 0:02:35]}  O-O-O {[%clk 0:01:15]} 16. Nxd7 {[%clk 0:02:32]}  Rxd7 {[%clk 0:01:02]} 17. Bxd7+ {[%clk 0:02:31]}  Qxd7 {[%clk 0:00:56]} 18. Qa4 {[%clk 0:02:30]}  Qc7 {[%clk 0:00:53]} 19. Qxa5 {[%clk 0:02:29]}  Qxa5 {[%clk 0:00:48]} 20. Rxa5 {[%clk 0:02:28]}  Bxg2 {[%clk 0:00:47]} 21. Rg1 {[%clk 0:02:28]}  Bd5 {[%clk 0:00:43]} 22. Rxg7 {[%clk 0:02:29]}  Nh6 {[%clk 0:00:34]} 23. Ra7 {[%clk 0:02:24]}  Kb8 {[%clk 0:00:32]} 24. Re7 {[%clk 0:02:21]}  b3 {[%clk 0:00:30]} 25. c6 {[%clk 0:02:19]}  Nf5 {[%clk 0:00:25]} 26. Rb7+ {[%clk 0:02:18]}  Kc8 {[%clk 0:00:23]} 27. Rgxf7 {[%clk 0:02:14]}  Bc4 {[%clk 0:00:19]} 28. e4 {[%clk 0:02:05]}  Nh4 {[%clk 0:00:15]} 29. Ba3 {[%clk 0:02:02]}  Nf3+ {[%clk 0:00:13]} 30. Rxf3 {[%clk 0:02:00]}  Rg8 {[%clk 0:00:14]} 31. Bd6 {[%clk 0:01:56]}  Rg1+ {[%clk 0:00:00]} 32. Kd2 {[%clk 0:01:56]} 1-0


[Site "https://www.chess.com"]

[Event "Titled Tuesday Blitz July 25 Late 2023"]
[White "Fressinet, Laurent"]
[Black "Bortnyk, Olexandr"]
[WhiteFideId "608742"]
[BlackFideId "14120828"]
[WhiteElo "2910"]
[BlackElo "3025"]
[Result "1-0"]
[Round "9"]
[TimeControl "180+2"]
[Date "2023.07.25"]
[WhiteClock "0:00:10"]
[BlackClock "0:00:01"]
[Board "3"]

1. d4 {[%clk 0:02:58]}  Nf6 {[%clk 0:02:59]} 2. Nf3 {[%clk 0:02:59]}  b6 {[%clk 0:02:59]} 3. Bg5 {[%clk 0:02:58]}  Ne4 {[%clk 0:02:55]} 4. Bh4 {[%clk 0:02:57]}  Bb7 {[%clk 0:02:56]} 5. Nbd2 {[%clk 0:02:57]}  g6 {[%clk 0:02:54]} 6. Nxe4 {[%clk 0:02:50]}  Bxe4 {[%clk 0:02:55]} 7. Nd2 {[%clk 0:02:50]}  Bb7 {[%clk 0:02:55]} 8. e4 {[%clk 0:02:50]}  Bg7 {[%clk 0:02:55]} 9. c3 {[%clk 0:02:50]}  O-O {[%clk 0:02:55]} 10. Bd3 {[%clk 0:02:47]}  d5 {[%clk 0:02:52]} 11. e5 {[%clk 0:02:46]}  c5 {[%clk 0:02:52]} 12. O-O {[%clk 0:02:40]}  Ba6 {[%clk 0:02:49]} 13. Bxa6 {[%clk 0:02:31]}  Nxa6 {[%clk 0:02:50]} 14. f4 {[%clk 0:02:31]}  Qd7 {[%clk 0:02:48]} 15. Nf3 {[%clk 0:02:20]}  Rac8 {[%clk 0:02:46]} 16. Qd3 {[%clk 0:02:19]}  Nc7 {[%clk 0:02:46]} 17. Rae1 {[%clk 0:02:06]}  Rfe8 {[%clk 0:02:30]} 18. Ng5 {[%clk 0:02:01]}  Qf5 {[%clk 0:02:21]} 19. Qe2 {[%clk 0:01:28]}  cxd4 {[%clk 0:02:22]} 20. cxd4 {[%clk 0:01:26]}  Ne6 {[%clk 0:02:19]} 21. g4 {[%clk 0:01:20]}  Qc2 {[%clk 0:02:15]} 22. Qxc2 {[%clk 0:01:18]}  Rxc2 {[%clk 0:02:16]} 23. Nxe6 {[%clk 0:01:18]}  fxe6 {[%clk 0:02:16]} 24. Rf2 {[%clk 0:01:18]}  Rc4 {[%clk 0:01:46]} 25. Rd2 {[%clk 0:01:12]}  Rf8 {[%clk 0:01:34]} 26. Rf1 {[%clk 0:01:06]}  Kf7 {[%clk 0:01:13]} 27. g5 {[%clk 0:01:03]}  Ke8 {[%clk 0:01:10]} 28. Bg3 {[%clk 0:01:03]}  Kd7 {[%clk 0:01:09]} 29. Rff2 {[%clk 0:00:58]}  Rfc8 {[%clk 0:01:08]} 30. Kg2 {[%clk 0:00:57]}  Rc1 {[%clk 0:01:08]} 31. Kf3 {[%clk 0:00:55]}  b5 {[%clk 0:01:06]} 32. Ke2 {[%clk 0:00:55]}  b4 {[%clk 0:01:04]} 33. Kd3 {[%clk 0:00:54]}  Ra1 {[%clk 0:00:42]} 34. Rc2 {[%clk 0:00:54]}  Rxa2 {[%clk 0:00:38]} 35. Rxc8 {[%clk 0:00:50]}  Kxc8 {[%clk 0:00:39]} 36. Kc2 {[%clk 0:00:50]}  Ra1 {[%clk 0:00:37]} 37. Kb3 {[%clk 0:00:49]}  a5 {[%clk 0:00:37]} 38. Rc2+ {[%clk 0:00:44]}  Kb7 {[%clk 0:00:36]} 39. Rc5 {[%clk 0:00:43]}  h5 {[%clk 0:00:25]} 40. Kc2 {[%clk 0:00:38]}  Rf1 {[%clk 0:00:18]} 41. Kd3 {[%clk 0:00:29]}  Rd1+ {[%clk 0:00:19]} 42. Ke3 {[%clk 0:00:22]}  Ra1 {[%clk 0:00:13]} 43. Kd2 {[%clk 0:00:20]}  Bf8 {[%clk 0:00:06]} 44. h4 {[%clk 0:00:13]}  Bg7 {[%clk 0:00:04]} 45. Bf2 {[%clk 0:00:13]}  Rf1 {[%clk 0:00:02]} 46. Be3 {[%clk 0:00:13]}  Rh1 {[%clk 0:00:03]} 47. Rxa5 {[%clk 0:00:12]}  Rxh4 {[%clk 0:00:03]} 48. Rb5+ {[%clk 0:00:12]}  Kc7 {[%clk 0:00:03]} 49. Rxb4 {[%clk 0:00:12]}  Rg4 {[%clk 0:00:03]} 50. Ra4 {[%clk 0:00:12]}  Rg2+ {[%clk 0:00:03]} 51. Kc3 {[%clk 0:00:11]}  h4 {[%clk 0:00:03]} 52. Ra1 {[%clk 0:00:12]}  h3 {[%clk 0:00:04]} 53. Rh1 {[%clk 0:00:11]}  h2 {[%clk 0:00:04]} 54. Bd2 {[%clk 0:00:10]}  Kc6 {[%clk 0:00:03]} 55. Kd3 {[%clk 0:00:11]}  Kb5 {[%clk 0:00:04]} 56. Ke3 {[%clk 0:00:10]}  Kc4 {[%clk 0:00:03]} 57. Bc3 {[%clk 0:00:10]}  Rc2 {[%clk 0:00:02]} 58. Kf3 {[%clk 0:00:10]}  Kd3 {[%clk 0:00:03]} 59. Kg3 {[%clk 0:00:10]}  Ke4 {[%clk 0:00:03]} 60. Rxh2 {[%clk 0:00:10]}  Rc1 {[%clk 0:00:01]} 61. Rh7 {[%clk 0:00:10]}  Rg1+ {[%clk 0:00:01]} 62. Kf2 {[%clk 0:00:10]}  Rg4 {[%clk 0:00:01]} 63. Rxg7 {[%clk 0:00:10]}  Kxf4 {[%clk 0:00:02]} 64. Rxg6 {[%clk 0:00:09]}  Kf5 {[%clk 0:00:02]} 65. Rg7 {[%clk 0:00:09]}  Rf4+ {[%clk 0:00:02]} 66. Ke2 {[%clk 0:00:09]}  Re4+ {[%clk 0:00:02]} 67. Kd3 {[%clk 0:00:09]}  Rg4 {[%clk 0:00:03]} 68. Rxe7 {[%clk 0:00:09]}  Rg3+ {[%clk 0:00:03]} 69. Kc2 {[%clk 0:00:08]}  Rxg5 {[%clk 0:00:04]} 70. Rf7+ {[%clk 0:00:08]}  Ke4 {[%clk 0:00:04]} 71. Rf6 {[%clk 0:00:09]}  Rg2+ {[%clk 0:00:04]} 72. Kb3 {[%clk 0:00:09]}  Rg8 {[%clk 0:00:04]} 73. Rxe6 {[%clk 0:00:09]}  Kd3 {[%clk 0:00:05]} 74. Rd6 {[%clk 0:00:09]}  Rb8+ {[%clk 0:00:05]} 75. Ka4 {[%clk 0:00:09]}  Kc4 {[%clk 0:00:05]} 76. Rc6+ {[%clk 0:00:10]}  Kd3 {[%clk 0:00:05]} 77. Rc5 {[%clk 0:00:11]}  Rd8 {[%clk 0:00:04]} 78. Kb5 {[%clk 0:00:10]}  Ke4 {[%clk 0:00:04]} 79. Kc6 {[%clk 0:00:10]}  Rc8+ {[%clk 0:00:02]} 80. Kd7 {[%clk 0:00:10]}  Ra8 {[%clk 0:00:03]} 81. e6 {[%clk 0:00:10]}  Kf5 {[%clk 0:00:03]} 82. e7 {[%clk 0:00:10]}  Ra7+ {[%clk 0:00:01]} 83. Rc7 {[%clk 0:00:10]} 1-0


[Site "https://www.chess.com"]

[Event "Titled Tuesday Blitz July 25 Late 2023"]
[White "Nakamura, Hikaru"]
[Black "Xiong, Jeffery"]
[WhiteFideId "2016192"]
[BlackFideId "2047640"]
[WhiteElo "3260"]
[BlackElo "2984"]
[Result "1-0"]
[Round "9"]
[TimeControl "180+2"]
[Date "2023.07.25"]
[WhiteClock "0:00:15"]
[BlackClock "0:00:00"]
[Board "4"]

1. a3 {[%clk 0:02:54]}  d5 {[%clk 0:02:59]} 2. d4 {[%clk 0:02:32]}  Nf6 {[%clk 0:02:57]} 3. Nf3 {[%clk 0:02:32]}  g6 {[%clk 0:02:34]} 4. e3 {[%clk 0:02:26]}  Bg7 {[%clk 0:02:33]} 5. c4 {[%clk 0:02:27]}  O-O {[%clk 0:02:33]} 6. Nc3 {[%clk 0:02:27]}  dxc4 {[%clk 0:02:18]} 7. Bxc4 {[%clk 0:02:27]}  a6 {[%clk 0:02:19]} 8. O-O {[%clk 0:02:25]}  b5 {[%clk 0:02:16]} 9. Ba2 {[%clk 0:02:20]}  Bb7 {[%clk 0:01:56]} 10. b4 {[%clk 0:02:15]}  Nbd7 {[%clk 0:01:56]} 11. Qe2 {[%clk 0:02:13]}  Ne4 {[%clk 0:01:53]} 12. Nxe4 {[%clk 0:02:09]}  Bxe4 {[%clk 0:01:54]} 13. Nd2 {[%clk 0:02:06]}  Bb7 {[%clk 0:01:53]} 14. Nb3 {[%clk 0:01:57]}  Bd5 {[%clk 0:01:32]} 15. Na5 {[%clk 0:01:54]}  Nb6 {[%clk 0:01:32]} 16. Rd1 {[%clk 0:01:51]}  f5 {[%clk 0:01:10]} 17. Bxd5+ {[%clk 0:01:37]}  Qxd5 {[%clk 0:01:10]} 18. Ra2 {[%clk 0:01:37]}  Rad8 {[%clk 0:00:50]} 19. Rc2 {[%clk 0:01:17]}  Rd7 {[%clk 0:00:50]} 20. Rc5 {[%clk 0:01:01]}  Qf7 {[%clk 0:00:50]} 21. Qc2 {[%clk 0:00:55]}  Rc8 {[%clk 0:00:40]} 22. Rc6 {[%clk 0:00:51]}  Qe8 {[%clk 0:00:30]} 23. Bb2 {[%clk 0:00:38]}  Qd8 {[%clk 0:00:25]} 24. Rc1 {[%clk 0:00:37]}  Na4 {[%clk 0:00:16]} 25. Rxa6 {[%clk 0:00:33]}  Ra8 {[%clk 0:00:08]} 26. Nc6 {[%clk 0:00:19]}  Qe8 {[%clk 0:00:08]} 27. Rxa8 {[%clk 0:00:19]}  Qxa8 {[%clk 0:00:09]} 28. Ba1 {[%clk 0:00:19]}  Qe8 {[%clk 0:00:08]} 29. Qe2 {[%clk 0:00:18]}  Rd5 {[%clk 0:00:08]} 30. Na5 {[%clk 0:00:17]}  Qd7 {[%clk 0:00:07]} 31. f4 {[%clk 0:00:14]}  Nb6 {[%clk 0:00:00]} 32. Qc2 {[%clk 0:00:15]} 1-0


[Site "https://www.chess.com"]